fUSD/lending_fUSD_20250611
["ID","MTS","AMOUNT","RATE_DAILY","PERIOD"]
[365349035,1749612659962,-644.56,0.00018904,2]
[365349036,1749612659972,-575.72,0.00018904,2]
[365349037,1749612659983,-490.0,0.00018904,2]
[365349038,1749612659993,-694.54,0.00018904,2]
[365349039,1749612660004,-490.0,0.00018904,2]
[365349040,1749612660015,-490.0,0.00018904,2]
[365349041,1749612660024,-490.0,0.00018904,2]
[365349042,1749612660034,-1010.45,0.00018904,2]
[365349043,1749612660044,-10604.56,0.00018904,2]
[365349044,1749612660055,-490.0,0.00018904,2]
[365349045,1749612660064,-743.34,0.00018904,2]
[365349046,1749612660075,-1121.03,0.00018904,2]
[365349047,1749612660085,-499.89,0.00018904,2]
[365349048,1749612660095,-436.21978261,0.00018969,2]
[365349049,1749612660104,-2000.0,0.00019,2]
[365349050,1749612660114,-10035.58908249,0.00019,2]
[365349051,1749612660124,-22976.0,0.00019,2]
[365349052,1749612660134,-3235.0,0.00019,2]
[365349053,1749612660143,-314.0,0.00019,2]
[365349054,1749612660153,-151.0,0.00019,2]
[365349055,1749612660166,-151.0,0.00019,2]
[365349056,1749612660176,-151.0,0.00019,2]
[365349057,1749612660186,-152.128201,0.00019,2]
[365349058,1749612660196,-191.123645,0.00019,2]
[365349059,1749612660205,-151.0,0.00019,2]
[365349060,1749612660215,-151.0,0.00019,2]
[365349061,1749612660226,-250.0,0.00019,2]
[365349062,1749612660235,-151.0,0.00019,2]
[365349063,1749612660245,-173.932746,0.00019,2]
[365349064,1749612660257,-173.932746,0.00019,2]
[365349065,1749612660270,-198.334181,0.00019,2]
[365349066,1749612660279,-505.77160118,0.00019009,2]
[365349067,1749612660289,-502.17042356,0.00019009,2]
[365349068,1749612660299,-844.1,0.00019068,2]
[365349069,1749612660310,-1013.83,0.00019068,2]
[365349070,1749612660321,-557.63,0.00019068,2]
[365349071,1749612660331,-644.56,0.00019068,2]
[365349072,1749612660341,-575.72,0.00019068,2]
[365349073,1749612660352,-490.0,0.00019068,2]
[365349074,1749612660362,-694.54,0.00019068,2]
[365349075,1749612660371,-490.0,0.00019068,2]
[365349076,1749612660381,-490.0,0.00019068,2]
[365349077,1749612660391,-490.0,0.00019068,2]
[365349078,1749612660400,-151.0,0.00019068,2]
[365349079,1749612660409,-1010.45,0.00019068,2]
[365349080,1749612660419,-10604.56,0.00019068,2]
[365349081,1749612660429,-490.0,0.00019068,2]
[365349082,1749612660438,-743.34,0.00019068,2]
[365349083,1749612660448,-1121.03,0.00019068,2]
[365349084,1749612660458,-499.89,0.00019068,2]
[365349085,1749612660467,-436.21978261,0.00019072,2]
[365349086,1749612660477,-578.17207699,0.00019108,2]
[365349087,1749612660486,-199.75790905,0.00019108,2]
[365349088,1749612660496,-502.1622173,0.00019134,2]
[365349089,1749612660506,-152.0,0.00019143,3]
[365349090,1749612660652,-1489.546845,0.00019149,2]
[365349091,1749612660677,-1489.546845,0.00019149,2]
[365349092,1749612660686,-454.85,0.00019149,2]
[365349093,1749612660696,-454.85,0.00019149,2]
[365349094,1749612660705,-909.44,0.00019149,2]
[365349095,1749612660714,-454.85,0.00019149,2]
[365349096,1749612660723,-454.85,0.00019149,2]
[365349097,1749612660732,-454.85,0.00019149,2]
[365349098,1749612660741,-454.85,0.00019149,2]
[365349099,1749612660751,-454.85,0.00019149,2]
[365349100,1749612660761,-454.85,0.00019149,2]
[365349101,1749612660771,-454.85,0.00019149,2]
[365349102,1749612660780,-454.85,0.00019149,2]
[365349103,1749612660790,-436.21978261,0.00019176,2]
[365349104,1749612660799,-151.0,0.00019176,2]
[365349105,1749612660809,-151.0,0.00019176,2]
[365349106,1749612660818,-152.17322566,0.00019178,2]
[365349107,1749612660828,-151.0,0.00019178,2]
[365349108,1749612660837,-151.0,0.00019178,2]
[365349109,1749612660847,-151.0,0.00019178,2]
[365349110,1749612660856,-152.860824,0.00019178,2]
[365349111,1749612660865,-192.15,0.00019178,2]
[365349112,1749612660874,-189.840227,0.00019232,2]
[365349113,1749612660884,-189.840227,0.00019232,2]
[365349114,1749612660894,-241.160722,0.00019232,2]
[365349115,1749612660903,-154.410419,0.00019232,2]
[365349116,1749612660912,-844.1,0.00019232,2]
[365349117,1749612660921,-170.65879709,0.00019232,2]
[365349118,1749612661048,-490.0,0.00016438,2]
[365349119,1749612661057,-227.59273275,0.0001726,2]
[365349120,1749612661069,-262.40726725,0.0001726,2]
[365349121,1749612661079,-490.0,0.00017424,2]
[365349122,1749612661088,-490.0,0.00017589,2]
[365349123,1749612661097,-490.0,0.00017753,2]
[365349124,1749612661107,-490.0,0.00017917,2]
[365349125,1749612661117,-550.25,0.00018082,2]
[365349126,1749612661127,-843.17120291,0.00019232,2]
[365349127,1749612661136,-557.63,0.00019232,2]
[365349128,1749612661146,-644.56,0.00019232,2]
[365349129,1749612661155,-575.72,0.00019232,2]
[365349130,1749612661165,-490.0,0.00019232,2]
[365349131,1749612661175,-694.54,0.00019232,2]
[365349132,1749612661185,-490.0,0.00019232,2]
[365349133,1749612661195,-554.46,0.00019232,2]
[365349134,1749612661204,-490.0,0.00019232,2]
[365349135,1749612661214,-1010.45,0.00019232,2]
[365349136,1749612661226,-10604.56,0.00019232,2]
[365349137,1749612661235,-490.0,0.00019232,2]
[365349138,1749612661245,-743.34,0.00019232,2]
[365349139,1749612661255,-1121.03,0.00019232,2]
[365349140,1749612661265,-499.89,0.00019232,2]
[365349141,1749612661277,-989.835671,0.00019279,2]
[365349142,1749612661287,-989.835671,0.00019279,2]
[365349143,1749612661297,-475.67481,0.00019279,2]
[365349144,1749612661306,-475.67481,0.00019279,2]
[365349145,1749612661317,-436.21978261,0.00019279,2]
[365349146,1749612661327,-884.0,0.00019372,2]
[365349147,1749612661337,-436.21978261,0.00019383,2]
[365349148,1749612661348,-500.0,0.00019396,2]
[365349149,1749612661358,-152.86788,0.00019397,2]
[365349150,1749612661367,-151.0,0.00019397,2]
[365349151,1749612661377,-151.0,0.00019397,2]
[365349152,1749612661387,-151.0,0.00019397,2]
[365349153,1749612661397,-151.0,0.00019397,2]
[365349154,1749612661407,-151.0,0.00019397,2]
[365349155,1749612661417,-844.1,0.00019397,2]
[365349156,1749612661427,-1013.83,0.00019397,2]
[365349157,1749612661436,-557.63,0.00019397,2]
[365349158,1749612661446,-644.56,0.00019397,2]
[365349159,1749612661455,-575.72,0.00019397,2]
[365349160,1749612661465,-490.0,0.00019397,2]
[365349161,1749612661475,-694.54,0.00019397,2]
[365349162,1749612661484,-461.24,0.00019397,2]
[365349163,1749612661494,-330.21,0.00019397,2]
[365349164,1749612661504,-1010.45,0.00019397,2]
[365349165,1749612661514,-10604.56,0.00019397,2]
[365349166,1749612661524,-490.0,0.00019397,2]
[365349167,1749612661535,-743.34,0.00019397,2]
[365349168,1749612661544,-1121.03,0.00019397,2]
[365349169,1749612661553,-499.89,0.00019397,2]
[365349170,1749612661563,-168.94965726,0.00019425,2]
[365349171,1749612661572,-436.21978261,0.00019486,2]
[365349172,1749612661582,-151.0,0.00019499,2]
[365349173,1749612661592,-151.0,0.00019499,2]
[365349174,1749612661602,-500.0,0.00019499,2]
[365349175,1749612661611,-173.89447,0.00019499,2]
[365349176,1749612661621,-173.89447,0.00019499,2]
[365349177,1749612661630,-70434.05604801,0.000195,2]
[365349178,1749612661639,-151.0,0.000195,2]
[365349179,1749612661649,-151.0,0.000195,2]
[365349180,1749612661659,-152.189506,0.000195,2]
[365349181,1749612661668,-154.375109,0.000195,2]
[365349182,1749612661677,-151.0,0.000195,2]
[365349183,1749612661686,-151.0,0.000195,2]
[365349184,1749612661695,-151.0,0.000195,2]
[365349185,1749612661704,-151.0,0.000195,2]
[365349186,1749612661713,-152.719782,0.000195,2]
[365349187,1749612661723,-151.0,0.000195,2]
[365349188,1749612661732,-151.0,0.000195,2]
[365349189,1749612661741,-151.0,0.000195,2]
[365349190,1749612661750,-151.0,0.000195,2]
[365349191,1749612661762,-151.0,0.000195,2]
[365349192,1749612661771,-173.932746,0.000195,2]
[365349193,1749612661780,-173.932746,0.000195,2]
[365349194,1749612661789,-198.334181,0.000195,2]
[365349195,1749612661798,-189.840227,0.000195,2]
[365349196,1749612661807,-189.840227,0.000195,2]
[365349197,1749612661817,-241.160722,0.000195,2]
[365349198,1749612661826,-1489.546845,0.000195,2]
[365349199,1749612661836,-1489.546845,0.000195,2]
[365349200,1749612661845,-151.0,0.000195,2]
[365349201,1749612661853,-151.0,0.000195,2]
[365349202,1749612661863,-151.0,0.000195,2]
[365349203,1749612661872,-578.17207699,0.00019504,2]
[365349204,1749612661881,-199.75790905,0.00019504,2]
[365349205,1749612661891,-151.0,0.00019542,2]
[365349206,1749612661900,-151.0,0.00019542,2]
[365349207,1749612661910,-151.0,0.00019542,2]
[365349208,1749612661919,-989.835671,0.00019561,2]
[365349209,1749612661929,-989.835671,0.00019561,2]
[365349210,1749612661939,-475.67481,0.00019561,2]
[365349211,1749612661949,-475.67481,0.00019561,2]
[365349212,1749612661958,-542.799,0.00019561,2]
[365349213,1749612661968,-844.1,0.00019561,2]
[365349214,1749612661977,-1013.83,0.00019561,2]
[365349215,1749612661987,-557.63,0.00019561,2]
[365349216,1749612661996,-644.56,0.00019561,2]
[365349217,1749612662006,-575.72,0.00019561,2]
[365349218,1749612662016,-490.0,0.00019561,2]
[365349219,1749612662026,-694.54,0.00019561,2]
[365349220,1749612662035,-1010.45,0.00019561,2]
[365349221,1749612662045,-83.85276244,0.00019561,2]
[365349222,1749612662082,-10520.70723756,0.00019561,2]
[365349223,1749612662091,-547.64,0.00019561,2]
[365349224,1749612662101,-743.34,0.00019561,2]
[365349225,1749612662111,-1121.03,0.00019561,2]
[365349226,1749612662120,-499.89,0.00019561,2]
[365349227,1749612662130,-436.21978261,0.0001959,2]
[365349228,1749612662140,-962.375595,0.00019599,2]
[365349229,1749612662149,-156.587,0.00019646,2]
[365349230,1749612662159,-215.0738,0.00019646,2]
[365349231,1749612662168,-436.21978261,0.00019693,2]
[365349232,1749612662178,-547.0,0.00019711,2]
[365349233,1749612662187,-152.917948,0.00019726,2]
[365349234,1749612662196,-151.0,0.00019726,2]
[365349235,1749612662206,-151.0,0.00019726,2]
[365349236,1749612662215,-450.0,0.00019726,2]
[365349237,1749612662224,-450.0,0.00019726,2]
[365349238,1749612662234,-450.0,0.00019726,2]
[365349239,1749612662243,-450.0,0.00019726,2]
[365349240,1749612662261,-323.293158,0.00019726,2]
[365349241,1749612662273,-151.0,0.00019726,2]
[365349242,1749612662283,-151.0,0.00019726,2]
[365349243,1749612662293,-173.89447,0.00019726,2]
[365349244,1749612662302,-151.0,0.00019726,2]
[365349245,1749612662311,-173.89447,0.00019726,2]
[365349246,1749612662322,-151.0,0.00019726,2]
[365349247,1749612662331,-844.1,0.00019726,2]
[365349248,1749612662341,-1013.83,0.00019726,2]
[365349249,1749612662352,-557.63,0.00019726,2]
[365349250,1749612662361,-644.56,0.00019726,2]
[365349251,1749612662370,-575.72,0.00019726,2]
[365349252,1749612662380,-490.0,0.00019726,2]
[365349253,1749612662389,-694.54,0.00019726,2]
[365349254,1749612662399,-1010.45,0.00019726,2]
[365349255,1749612662408,-10604.56,0.00019726,2]
[365349256,1749612662418,-743.34,0.00019726,2]
[365349257,1749612662427,-1121.03,0.00019726,2]
[365349258,1749612662437,-499.89,0.00019726,2]
[365349259,1749612662447,-152.0,0.0001975,4]
[365349260,1749612662456,-944.53,0.00019784,2]
[365349261,1749612662466,-3330.0,0.00019784,2]
[365349262,1749612662475,-934.826,0.00019784,2]
[365349263,1749612662486,-155.0,0.00019784,2]
[365349264,1749612662496,-203.0,0.00019795,7]
[365349265,1749612662507,-436.21978261,0.00019797,2]
[365349266,1749612662517,-898.35502,0.000198,2]
[365349267,1749612662527,-7937.76151322,0.00019858,2]
[365349268,1749612662537,-310.1844357,0.00019887,2]
[365349269,1749612662546,-844.1,0.0001989,2]
[365349270,1749612662557,-1013.83,0.0001989,2]
[365349271,1749612662567,-557.63,0.0001989,2]
[365349272,1749612662577,-644.56,0.0001989,2]
[365349273,1749612662587,-575.72,0.0001989,2]
[365349274,1749612662596,-354.97,0.0001989,2]
[365349275,1749612662606,-694.54,0.0001989,2]
[365349276,1749612662615,-1010.45,0.0001989,2]
[365349277,1749612662625,-10604.56,0.0001989,2]
[365349278,1749612662635,-743.34,0.0001989,2]
[365349279,1749612662644,-1121.03,0.0001989,2]
[365349280,1749612662653,-499.89,0.0001989,2]
[365349281,1749612662662,-18981.8246,0.000199,2]
[365349282,1749612662671,-164.01873462,0.000199,2]
[365349283,1749612662681,-173.932746,0.000199,2]
[365349284,1749612662690,-173.932746,0.000199,2]
[365349285,1749612662699,-989.835671,0.000199,2]
[365349286,1749612662710,-989.835671,0.000199,2]
[365349287,1749612662719,-475.67481,0.000199,2]
[365349288,1749612662729,-475.67481,0.000199,2]
[365349289,1749612662739,-578.17207699,0.000199,2]
[365349290,1749612662748,-436.21978261,0.000199,2]
[365349291,1749612662759,-241.103766,0.000199,2]
[365349292,1749612662769,-199.75790905,0.000199,2]
[365349293,1749612662779,-200.0,0.00019918,2]
[365349294,1749612662788,-200.0,0.00019919,2]
[365349295,1749612662798,-7937.76151322,0.00019934,2]
[365349296,1749612662808,-7937.76151322,0.00019945,2]
[365349297,1749612662818,-1489.546845,0.00019971,2]
[365349298,1749612662828,-1489.546845,0.00019971,2]
[365349299,1749612662839,-151.0,0.00019971,2]
[365349300,1749612662848,-151.0,0.00019971,2]
[365349301,1749612662858,-454.85,0.00019971,2]
[365349302,1749612662866,-454.85,0.00019971,2]
[365349303,1749612662876,-454.85,0.00019971,2]
[365349304,1749612662885,-454.85,0.00019971,2]
[365349305,1749612662894,-928.39,0.00019971,2]
[365349306,1749612662903,-454.85,0.00019971,2]
[365349307,1749612662913,-458.7,0.00019971,2]
[365349308,1749612662922,-454.85,0.00019971,2]
[365349309,1749612662932,-454.85,0.00019971,2]
[365349310,1749612662942,-454.85,0.00019971,2]
[365349311,1749612662951,-909.56,0.00019971,2]
[365349312,1749612662960,-454.85,0.00019971,2]
[365349313,1749612662970,-454.85,0.00019971,2]
[365349314,1749612662979,-454.85,0.00019971,2]
[365349315,1749612662989,-909.3,0.00019971,2]
[365349316,1749612662999,-159.88946347,0.00019973,2]
[365349317,1749612663010,-500.0,0.00019973,2]
[365349318,1749612663021,-500.0,0.00019973,2]
[365349319,1749612663031,-500.0,0.00019973,2]
[365349320,1749612663041,-531.67314427,0.00019973,2]
[365349321,1749612663051,-501.44025011,0.00019973,2]
[365349322,1749612663061,-317.57865868,0.00019973,2]
[365349323,1749612663070,-500.0,0.00019973,2]
[365349324,1749612663080,-500.0,0.00019973,2]
[365349325,1749612663090,-500.0,0.00019973,2]
[365349326,1749612663101,-502.89184625,0.00019973,2]
[365349327,1749612663111,-452.0335729,0.00019973,2]
[365349328,1749612663122,-500.0,0.00019973,2]
[365349329,1749612663132,-500.0,0.00019973,2]
[365349330,1749612663142,-500.51810523,0.00019973,2]
[365349331,1749612663152,-207.35734062,0.00019973,2]
[365349332,1749612663161,-226.98771333,0.00019973,2]
[365349333,1749612663171,-218.98944272,0.00019973,2]
[365349334,1749612663180,-200.0,0.0001999,2]
[365349335,1749612663190,-12254.66,0.00019999,2]
[365349336,1749612663199,-151.0,0.00019999,2]
[365349337,1749612663209,-151.0,0.00019999,2]
[365349338,1749612663219,-603.24,0.00019999,2]
[365349339,1749612663228,-205.4602406,0.00019999,2]
[365349340,1749612663237,-198.334181,0.00019999,2]
[365349341,1749612663246,-189.840227,0.00019999,2]
[365349342,1749612663256,-189.840227,0.00019999,2]
[365349343,1749612663271,-241.160722,0.00019999,2]
[365349344,1749612663280,-500.0,0.00019999,2]
[365349345,1749612663290,-500.0,0.00019999,2]
[365349346,1749612663299,-546.95,0.00019999,2]
[365349347,1749612663308,-469054.57047151,0.0002,2]
[365349348,1749612663321,-1420.80900003,0.0002,2]
[365349349,1749612663332,-386.65800852,0.0002,2]
[365349350,1749612726294,346.29,0.000246,120]
[365349351,1749612731257,346.29,0.000246,120]
[365349352,1749612735971,346.29,0.000246,120]
[365349353,1749612740200,346.29,0.000246,120]
[365349354,1749612744366,346.29,0.000246,120]
[365349355,1749612750068,346.29,0.000246,120]
[365349356,1749612754857,346.29,0.000246,120]
[365349357,1749612759568,346.29,0.000246,120]
[365349358,1749612761497,210.0,0.00015774,2]
[365349359,1749612765309,346.29,0.000246,120]
[365349360,1749612769678,346.29,0.000246,120]
[365349361,1749612773869,346.29,0.000246,120]
[365349362,1749612778541,346.29,0.000246,120]
[365349363,1749612783254,346.29,0.000246,120]
[365349365,1749612917258,300.0,0.00024657,120]
[365349369,1749613240337,156.4,0.00013699,2]
[365349372,1749613536136,-488.91,0.00016126,2]
[365349373,1749613536158,-529.79200548,0.00016164,2]
[365349374,1749613536179,-168.15150967,0.00016164,2]
[365349379,1749613625107,-343.99837357,0.00016164,2]
[365349380,1749613625129,-335.60602672,0.00016338,2]
[365349382,1749613641113,-164.39397328,0.00016338,2]
[365349383,1749613641135,-4056.3671,0.00016338,2]
[365349384,1749613641156,-279.74719701,0.00016437,2]
[365349385,1749613641178,-490.0,0.00016438,2]
[365349386,1749613641200,-165.34431201,0.00016438,2]
[365349387,1749613641221,-367.74915172,0.00016438,2]
[365349388,1749613641242,-446.57920791,0.00016438,2]
[365349389,1749613641262,-490.0,0.00016438,2]
[365349390,1749613641283,-215.34594252,0.00016438,2]
[365349391,1749613641304,-480.0,0.00016438,2]
[365349392,1749613641328,-274.61305201,0.00016438,2]
[365349393,1749613641350,-480.0,0.00016438,2]
[365349394,1749613641372,-481.65687961,0.00016438,2]
[365349395,1749613641392,-364.48439656,0.00016438,2]
[365349396,1749613641414,-480.0,0.00016438,2]
[365349397,1749613641433,-196.95785136,0.00016438,2]
[365349399,1749613647101,-272.06672865,0.00016438,2]
[365349400,1749613647123,-537.94994392,0.00016438,2]
[365349401,1749613647143,-466.0358283,0.00016438,2]
[365349402,1749613647163,-195.18326092,0.00016438,2]
[365349403,1749613647192,-137.85916413,0.00016438,2]
[365349404,1749613647420,-299.11444372,0.00016438,2]
[365349428,1749613832101,-269.54399674,0.00016438,2]
[365349429,1749613832205,-110.45600326,0.00016438,2]
[365349430,1749613832216,-463.29405659,0.00016438,2]
[365349431,1749613832226,-405.93082648,0.00016438,2]
[365349432,1749613832236,-418.5294875,0.00016438,2]
[365349433,1749613832248,-525.51,0.00016438,2]
[365349434,1749613832259,-180.75059045,0.00016438,2]
[365349435,1749613832269,-141.71238037,0.00016438,2]
[365349436,1749613832363,-320.19069254,0.00016438,2]
[365349437,1749613832374,-404.15796959,0.00016438,2]
[365349438,1749613832383,-460.0,0.00016438,2]
[365349439,1749613832394,-490.0,0.00016438,2]
[365349440,1749613832403,-460.0,0.00016438,2]
[365349441,1749613832413,-480.0,0.00016438,2]
[365349442,1749613832423,-378.77367049,0.00016438,2]
[365349443,1749613832433,-451.01850037,0.00016438,2]
[365349444,1749613832442,-325.93305353,0.00016438,2]
[365349445,1749613832452,-544.31618796,0.00016438,2]
[365349446,1749613832463,-394.38381664,0.00016438,2]
[365349448,1749613832472,-395.76929518,0.00016438,2]
[365349468,1749613833243,1905.6,0.00024658,120]
[365349470,1749613838174,-94.23070482,0.00016438,2]
[365349471,1749613838184,-480.0,0.00016438,2]
[365349472,1749613838193,-480.0,0.00016438,2]
[365349473,1749613838203,-480.0,0.00016438,2]
[365349474,1749613838212,-490.0,0.00016438,2]
[365349475,1749613838222,-480.0,0.00016438,2]
[365349476,1749613838231,-480.0,0.00016438,2]
[365349477,1749613838241,-381.55783227,0.00016438,2]
[365349478,1749613838250,-441.03571084,0.00016438,2]
[365349479,1749613838260,-490.0,0.00016438,2]
[365349480,1749613838280,-480.0,0.00016438,2]
[365349481,1749613838300,-480.0,0.00016438,2]
[365349482,1749613838311,-480.0,0.00016438,2]
[365349483,1749613838321,-480.0,0.00016438,2]
[365349484,1749613838330,-480.0,0.00016438,2]
[365349485,1749613838339,-480.0,0.00016438,2]
[365349486,1749613838349,-480.0,0.00016438,2]
[365349487,1749613838358,-480.0,0.00016438,2]
[365349488,1749613838368,-480.0,0.00016438,2]
[365349489,1749613838377,-490.0,0.00016438,2]
[365349490,1749613838387,-490.0,0.00016438,2]
[365349491,1749613838396,-435.02754049,0.00016438,2]
[365349492,1749613838406,-504.53,0.00016438,2]
[365349493,1749613838415,-490.0,0.00016438,2]
[365349494,1749613838424,-883.71,0.00016438,2]
[365349495,1749613838433,-460.0,0.00016438,2]
[365349496,1749613838443,-486.86415548,0.00016438,2]
[365349497,1749613838452,-490.0,0.00016438,2]
[365349498,1749613838463,-490.0,0.00016438,2]
[365349499,1749613838484,-490.0,0.00016438,2]
[365349500,1749613838502,-490.0,0.00016438,2]
[365349501,1749613838511,-326.91775063,0.00016438,2]
[365349502,1749613838521,-490.0,0.00016438,2]
[365349503,1749613838531,-490.0,0.00016438,2]
[365349504,1749613838541,-547.03,0.00016438,2]
[365349505,1749613838551,-490.0,0.00016438,2]
[365349506,1749613838560,-189.35587915,0.00016438,2]
[365349507,1749613838607,-300.64412085,0.00016438,2]
[365349508,1749613838617,-383.16135078,0.00016438,2]
[365349509,1749613838661,-106.83864922,0.00016438,2]
[365349510,1749613838671,-461.21475516,0.00016438,2]
[365349511,1749613838680,-500.36,0.00016438,2]
[365349512,1749613838690,-150.91,0.00016438,2]
[365349513,1749613838703,-490.97,0.00016438,2]
[365349514,1749613838715,-135.54522381,0.00016438,2]
[365349515,1749613838731,-170.07477619,0.00016438,2]
[365349516,1749613838740,-492.87,0.00016438,2]
[365349517,1749613838750,-497.83,0.00016438,2]
[365349518,1749613838760,-301.25,0.00016438,2]
[365349519,1749613838770,-493.38,0.00016438,2]
[365349520,1749613838780,-497.61,0.00016438,2]
[365349521,1749613838790,-150.57,0.00016438,2]
[365349522,1749613838799,-304.71,0.00016438,2]
[365349523,1749613838809,-490.48,0.00016438,2]
[365349524,1749613838819,-502.95,0.00016438,2]
[365349526,1749613838829,-495.07,0.00016438,2]
[365349528,1749613838838,-301.99,0.00016438,2]
[365349529,1749613838847,-499.66,0.00016438,2]
[365349530,1749613838857,-493.16,0.00016438,2]
[365349531,1749613838867,-304.92,0.00016438,2]
[365349532,1749613838877,-503.91,0.00016438,2]
[365349534,1749613838886,-151.46,0.00016438,2]
[365349536,1749613838896,-495.86,0.00016438,2]
[365349538,1749613838905,-509.15,0.00016438,2]
[365349540,1749613838914,-305.97,0.00016438,2]
[365349542,1749613838924,-493.02,0.00016438,2]
[365349544,1749613838933,-150.19,0.00016438,2]
[365349546,1749613838942,-305.49,0.00016438,2]
[365349548,1749613838951,-494.01,0.00016438,2]
[365349549,1749613838960,-151.55,0.00016438,2]
[365349551,1749613838973,-493.2,0.00016438,2]
[365349553,1749613838982,-351.66522381,0.00016438,2]
[365349555,1749613838994,-145.73477619,0.00016438,2]
[365349557,1749613839003,-301.42,0.00016438,2]
[365349559,1749613839012,-498.41,0.00016438,2]
[365349561,1749613839022,-98.68522381,0.00016438,2]
[365349673,1749613840253,-294.56712353,0.00016438,2]
[365349680,1749613840307,-101.81765266,0.00016438,2]
[365349682,1749613840316,-302.3,0.00016438,2]
[365349684,1749613840326,-502.14,0.00016438,2]
[365349686,1749613840335,-189.34234734,0.00016438,2]
[365349706,1749613840518,-312.48765266,0.00016438,2]
[365349708,1749613840528,-63.22434734,0.00016438,2]
[365349720,1749613840627,-436.67565266,0.00016438,2]
[365349722,1749613840636,-305.95,0.00016438,2]
[365349724,1749613840646,-295.18051786,0.00016438,2]
[365349980,1749613843198,-213.39948214,0.00016438,2]
[365349982,1749613843209,-498.49,0.00016438,2]
[365349984,1749613843219,-478.28117987,0.00016438,2]
[365349988,1749613843253,-28.23882013,0.00016438,2]
[365349991,1749613843262,-150.77,0.00016438,2]
[365349993,1749613843272,-302.1,0.00016438,2]
[365349994,1749613843282,-490.77,0.00016438,2]
[365349996,1749613843291,-495.23,0.00016438,2]
[365349998,1749613843300,-303.06,0.00016438,2]
[365350000,1749613843310,-497.11,0.00016438,2]
[365350002,1749613843319,-504.96,0.00016438,2]
[365350004,1749613843329,-503.78,0.00016438,2]
[365350006,1749613843339,-304.3,0.00016438,2]
[365350008,1749613843349,-150.69,0.00016438,2]
[365350010,1749613843358,-505.69,0.00016438,2]
[365350012,1749613843367,-237.0,0.00016439,2]
[365350014,1749613843376,-151.0,0.00016502,2]
[365350016,1749613843388,-151.0,0.00016602,2]
[365350018,1749613843400,-151.0,0.00016602,2]
[365350020,1749613843410,-213.152965,0.00016602,2]
[365350022,1749613843418,-151.0,0.00016602,2]
[365350024,1749613843427,-15090.4092055,0.00016602,2]
[365350026,1749613843437,-216.43,0.00016602,2]
[365350028,1749613843446,-490.0,0.00016602,2]
[365350030,1749613843455,-490.0,0.00016602,2]
[365350032,1749613843464,-490.0,0.00016602,2]
[365350034,1749613843474,-490.0,0.00016602,2]
[365350036,1749613843484,-490.0,0.00016602,2]
[365350038,1749613843493,-490.0,0.00016602,2]
[365350040,1749613843502,-883.71,0.00016602,2]
[365350042,1749613843511,-490.0,0.00016602,2]
[365350044,1749613843521,-490.0,0.00016602,2]
[365350046,1749613843531,-490.0,0.00016602,2]
[365350048,1749613843540,-509.94,0.00016602,2]
[365350050,1749613843550,-490.0,0.00016602,2]